fUSD/lending_fUSD_20250507
["ID","MTS","AMOUNT","RATE_DAILY","PERIOD"]
[360242959,1746655834195,-450.0,0.00019989,2]
[360242960,1746655834205,-450.0,0.00019989,2]
[360242961,1746655834216,-450.0,0.00019989,2]
[360242962,1746655834226,-500.0,0.00019989,2]
[360242963,1746655834236,-450.0,0.00019989,2]
[360242964,1746655834246,-450.0,0.00019989,2]
[360242965,1746655834256,-450.0,0.00019989,2]
[360242966,1746655834266,-450.0,0.00019989,2]
[360242967,1746655834277,-450.0,0.00019989,2]
[360242968,1746655834287,-450.0,0.00019989,2]
[360242969,1746655834296,-450.0,0.00019989,2]
[360242970,1746655834306,-450.0,0.00019989,2]
[360242971,1746655834316,-450.0,0.00019989,2]
[360242972,1746655834325,-450.0,0.00019989,2]
[360242973,1746655834335,-441.81501817,0.00019989,2]
[360242974,1746655834346,-450.0,0.00019989,2]
[360242975,1746655834356,-155.60140968,0.00019989,2]
[360242976,1746655834366,-450.0,0.00019989,2]
[360242977,1746655834376,-550.0,0.00019989,2]
[360242978,1746655834386,-450.0,0.00019989,2]
[360242979,1746655834396,-450.0,0.00019989,2]
[360242980,1746655834406,-450.0,0.00019989,2]
[360242981,1746655834415,-550.0,0.00019989,2]
[360242982,1746655834426,-910.5,0.00019989,2]
[360242983,1746655834436,-450.0,0.00019989,2]
[360242984,1746655834447,-450.0,0.00019989,2]
[360242985,1746655834457,-641.81,0.00019989,2]
[360242986,1746655834467,-550.0,0.00019989,2]
[360242987,1746655834477,-450.0,0.00019989,2]
[360242988,1746655834487,-550.0,0.00019989,2]
[360242989,1746655834497,-880.26,0.00019989,2]
[360242990,1746655834507,-450.0,0.00019989,2]
[360242991,1746655834516,-2045.48,0.00019989,2]
[360242992,1746655834529,-450.0,0.00019989,2]
[360242993,1746655834540,-667.65,0.00019989,2]
[360242994,1746655834550,-450.0,0.00019989,2]
[360242995,1746655834560,-450.0,0.00019989,2]
[360242996,1746655834570,-450.0,0.00019989,2]
[360242997,1746655834580,-450.0,0.00019989,2]
[360242998,1746655834590,-450.0,0.00019989,2]
[360242999,1746655834600,-450.0,0.00019989,2]
[360243000,1746655834610,-4672.25,0.00019989,2]
[360243001,1746655834620,-450.0,0.00019989,2]
[360243002,1746655834630,-450.0,0.00019989,2]
[360243003,1746655834640,-500.0,0.00019989,2]
[360243004,1746655834649,-450.0,0.00019989,2]
[360243005,1746655834660,-450.0,0.00019989,2]
[360243006,1746655834670,-450.0,0.00019989,2]
[360243007,1746655834680,-151.69,0.00019989,2]
[360243008,1746655834690,-450.0,0.00019989,2]
[360243009,1746655834700,-450.0,0.00019989,2]
[360243010,1746655834709,-571.68124756,0.00019989,2]
[360243011,1746655834720,-450.0,0.00019989,2]
[360243012,1746655834730,-490.0,0.00019989,2]
[360243013,1746655834739,-588.03,0.00019989,2]
[360243014,1746655834748,-514.7,0.00019989,2]
[360243015,1746655834758,-439.0318849,0.00019989,2]
[360243016,1746655834767,-450.0,0.00019989,2]
[360243017,1746655834777,-571.19,0.00019989,2]
[360243018,1746655834788,-450.0,0.00019989,2]
[360243019,1746655834799,-450.0,0.00019989,2]
[360243020,1746655834809,-450.0,0.00019989,2]
[360243021,1746655834819,-222.29,0.00019989,2]
[360243022,1746655834829,-450.0,0.00019989,2]
[360243023,1746655834840,-1747.7,0.00019989,2]
[360243024,1746655834849,-1760.59,0.00019989,2]
[360243025,1746655834860,-740.81,0.00019989,2]
[360243026,1746655834870,-450.0,0.00019989,2]
[360243027,1746655834880,-450.0,0.00019989,2]
[360243028,1746655834889,-500.0,0.00019989,2]
[360243029,1746655834900,-1181.7,0.00019989,2]
[360243030,1746655834910,-450.0,0.00019989,2]
[360243031,1746655834920,-450.0,0.00019989,2]
[360243032,1746655834930,-450.0,0.00019989,2]
[360243033,1746655834940,-580.27,0.00019989,2]
[360243034,1746655834949,-1197.82,0.00019989,2]
[360243035,1746655834960,-171.826855,0.00019989,2]
[360243036,1746655834969,-500.0,0.00019989,2]
[360243037,1746655834979,-450.0,0.00019989,2]
[360243038,1746655834989,-450.0,0.00019989,2]
[360243039,1746655834998,-450.0,0.00019989,2]
[360243040,1746655835008,-450.0,0.00019989,2]
[360243041,1746655835018,-15018.025488,0.00019989,2]
[360243042,1746655835029,-505.25504747,0.00019989,2]
[360243043,1746655835039,-450.0,0.00019989,2]
[360243044,1746655835050,-505.73,0.00019989,2]
[360243045,1746655835059,-450.0,0.00019989,2]
[360243046,1746655835068,-1996.25613,0.00019989,2]
[360243047,1746655835078,-450.0,0.00019989,2]
[360243048,1746655835088,-450.0,0.00019989,2]
[360243049,1746655835097,-584.57,0.00019989,2]
[360243050,1746655835107,-450.0,0.00019989,2]
[360243051,1746655835117,-964.89,0.00019989,2]
[360243052,1746655835126,-500.0,0.00019989,2]
[360243053,1746655835136,-450.0,0.00019989,2]
[360243054,1746655835145,-1203.59,0.00019989,2]
[360243055,1746655835155,-450.0,0.00019989,2]
[360243056,1746655835164,-450.0,0.00019989,2]
[360243057,1746655835173,-450.0,0.00019989,2]
[360243058,1746655835185,-171.826855,0.00019989,2]
[360243059,1746655835194,-450.0,0.00019989,2]
[360243060,1746655835204,-450.0,0.00019989,2]
[360243061,1746655835214,-450.0,0.00019989,2]
[360243062,1746655835223,-1364.77,0.00019989,2]
[360243063,1746655835233,-2485.01,0.00019989,2]
[360243064,1746655835243,-450.0,0.00019989,2]
[360243065,1746655835253,-450.0,0.00019989,2]
[360243066,1746655835263,-1877.253186,0.00019989,2]
[360243067,1746655835272,-455.28,0.00019989,2]
[360243068,1746655835283,-1387.87,0.00019989,2]
[360243069,1746655835293,-542.87019912,0.00019989,2]
[360243070,1746655835303,-201.56,0.00019989,2]
[360243071,1746655835312,-450.0,0.00019989,2]
[360243072,1746655835322,-504.17,0.00019989,2]
[360243073,1746655835331,-450.0,0.00019989,2]
[360243074,1746655835341,-450.0,0.00019989,2]
[360243075,1746655835352,-450.0,0.00019989,2]
[360243076,1746655835361,-573.38360169,0.00019989,2]
[360243077,1746655835371,-523.83,0.00019989,2]
[360243078,1746655835381,-523.83,0.00019989,2]
[360243079,1746655835391,-1458.27,0.00019989,2]
[360243080,1746655835402,-568.96,0.00019989,2]
[360243081,1746655835411,-450.0,0.00019989,2]
[360243082,1746655835421,-2413.44,0.00019989,2]
[360243083,1746655835432,-450.0,0.00019989,2]
[360243084,1746655835442,-450.0,0.00019989,2]
[360243085,1746655835451,-450.0,0.00019989,2]
[360243086,1746655835462,-454.47,0.00019989,2]
[360243087,1746655835472,-450.0,0.00019989,2]
[360243088,1746655835481,-450.0,0.00019989,2]
[360243089,1746655835491,-450.0,0.00019989,2]
[360243090,1746655835501,-450.0,0.00019989,2]
[360243091,1746655835511,-450.0,0.00019989,2]
[360243092,1746655835522,-510.26,0.00019989,2]
[360243093,1746655835536,-1225.16,0.00019989,2]
[360243094,1746655835547,-450.0,0.00019989,2]
[360243095,1746655835556,-450.0,0.00019989,2]
[360243096,1746655835566,-519.8,0.00019989,2]
[360243097,1746655835578,-450.0,0.00019989,2]
[360243098,1746655835587,-505.12396712,0.00019989,2]
[360243099,1746655835597,-450.0,0.00019989,2]
[360243100,1746655835607,-450.0,0.00019989,2]
[360243101,1746655835618,-450.0,0.00019989,2]
[360243102,1746655835630,-450.0,0.00019989,2]
[360243103,1746655835640,-450.0,0.00019989,2]
[360243104,1746655835651,-450.0,0.00019989,2]
[360243105,1746655835660,-450.0,0.00019989,2]
[360243106,1746655835669,-450.0,0.00019989,2]
[360243107,1746655835679,-450.0,0.00019989,2]
[360243108,1746655835688,-500.0,0.00019989,2]
[360243109,1746655835698,-450.0,0.00019989,2]
[360243110,1746655835708,-500.0,0.00019989,2]
[360243111,1746655835718,-2330.49,0.00019989,2]
[360243112,1746655835727,-195.348425,0.00019989,2]
[360243113,1746655835738,-450.0,0.00019989,2]
[360243114,1746655835747,-450.0,0.00019989,2]
[360243115,1746655835759,-450.0,0.00019989,2]
[360243116,1746655835769,-450.0,0.00019989,2]
[360243117,1746655835779,-450.0,0.00019989,2]
[360243118,1746655835789,-583.3,0.00019989,2]
[360243119,1746655835798,-450.0,0.00019989,2]
[360243120,1746655835807,-450.0,0.00019989,2]
[360243121,1746655835817,-450.0,0.00019989,2]
[360243122,1746655835826,-1499.04,0.00019989,2]
[360243123,1746655835835,-587.72900707,0.00019989,2]
[360243124,1746655835845,-2012.77512444,0.00019989,2]
[360243137,1746655838075,-962.70487556,0.00019989,2]
[360243138,1746655838085,-9.58512444,0.00019989,2]
[360243139,1746655838131,-440.41487556,0.00019989,2]
[360243140,1746655838142,-443.23,0.00019989,2]
[360243141,1746655838153,-500.0,0.00019989,2]
[360243142,1746655838163,-1761.95,0.00019989,2]
[360243143,1746655838172,-450.0,0.00019989,2]
[360243144,1746655838183,-898.64,0.00019989,2]
[360243145,1746655838192,-450.0,0.00019989,2]
[360243146,1746655838202,-450.0,0.00019989,2]
[360243147,1746655838212,-450.0,0.00019989,2]
[360243148,1746655838222,-450.0,0.00019989,2]
[360243149,1746655838233,-450.0,0.00019989,2]
[360243150,1746655838244,-450.0,0.00019989,2]
[360243151,1746655838254,-450.0,0.00019989,2]
[360243152,1746655838265,-485.81336337,0.00019989,2]
[360243153,1746655838275,-450.0,0.00019989,2]
[360243154,1746655838284,-500.0,0.00019989,2]
[360243155,1746655838294,-450.0,0.00019989,2]
[360243156,1746655838305,-450.0,0.00019989,2]
[360243157,1746655838314,-501.31,0.00019989,2]
[360243158,1746655838324,-2335.49,0.00019989,2]
[360243159,1746655838334,-2335.49,0.00019989,2]
[360243160,1746655838344,-450.0,0.00019989,2]
[360243161,1746655838353,-450.0,0.00019989,2]
[360243162,1746655838363,-450.0,0.00019989,2]
[360243163,1746655838374,-450.0,0.00019989,2]
[360243164,1746655838384,-450.0,0.00019989,2]
[360243165,1746655838394,-450.0,0.00019989,2]
[360243166,1746655838404,-450.0,0.00019989,2]
[360243168,1746655838414,-470.0,0.00019989,2]
[360243170,1746655838424,-450.0,0.00019989,2]
[360243172,1746655838434,-1630.84,0.00019989,2]
[360243174,1746655838445,-450.0,0.00019989,2]
[360243176,1746655838455,-450.0,0.00019989,2]
[360243178,1746655838464,-450.0,0.00019989,2]
[360243180,1746655838473,-1235.09,0.00019989,2]
[360243181,1746655838483,-2234.18,0.00019989,2]
[360243183,1746655838492,-450.0,0.00019989,2]
[360243184,1746655838502,-2234.18,0.00019989,2]
[360243185,1746655838511,-450.0,0.00019989,2]
[360243186,1746655838522,-450.0,0.00019989,2]
[360243187,1746655838536,-500.0,0.00019989,2]
[360243188,1746655838546,-450.0,0.00019989,2]
[360243189,1746655838557,-290.67,0.00019989,2]
[360243190,1746655838566,-554.71876817,0.00019989,2]
[360243191,1746655838576,-445.81,0.00019989,2]
[360243192,1746655838586,-3005.25,0.00019989,2]
[360243193,1746655838596,-500.0,0.00019989,2]
[360243194,1746655838605,-450.0,0.00019989,2]
[360243195,1746655838617,-450.0,0.00019989,2]
[360243196,1746655838626,-450.0,0.00019989,2]
[360243197,1746655838638,-450.0,0.00019989,2]
[360243198,1746655838649,-450.0,0.00019989,2]
[360243199,1746655838659,-450.0,0.00019989,2]
[360243200,1746655838668,-450.0,0.00019989,2]
[360243201,1746655838678,-450.0,0.00019989,2]
[360243202,1746655838687,-253.64,0.00019989,2]
[360243203,1746655838892,-450.0,0.00019989,2]
[360243204,1746655838903,-450.0,0.00019989,2]
[360243205,1746655838912,-450.0,0.00019989,2]
[360243206,1746655838922,-450.0,0.00019989,2]
[360243207,1746655838931,-450.0,0.00019989,2]
[360243208,1746655838941,-1784.45,0.00019989,2]
[360243209,1746655838951,-1784.45,0.00019989,2]
[360243210,1746655838960,-1000.0,0.00019989,2]
[360243211,1746655838969,-1000.0,0.00019989,2]
[360243212,1746655838978,-1030.0,0.00019989,2]
[360243213,1746655838988,-46666.48280582,0.0001999,2]
[360243214,1746655840153,-450.0,0.00019989,2]
[360243215,1746655840163,-619.92500014,0.0001999,2]
[360243216,1746655840174,-1573.82679567,0.0001999,2]
[360243217,1746655840376,-4737.53434266,0.0001999,2]
[360243218,1746655840492,-96606.05524453,0.0001999,2]
[360243219,1746655840502,-472.38,0.00019996,2]
[360243220,1746655840512,-450.0,0.00019996,2]
[360243221,1746655840522,-596.71,0.00019996,2]
[360243222,1746655840534,-450.0,0.00019996,2]
[360243223,1746655840545,-910.5,0.00019996,2]
[360243224,1746655840555,-2045.48,0.00019996,2]
[360243225,1746655840565,-667.65,0.00019996,2]
[360243226,1746655840574,-450.0,0.00019996,2]
[360243227,1746655840583,-450.0,0.00019996,2]
[360243228,1746655840599,-4672.25,0.00019996,2]
[360243229,1746655840609,-450.0,0.00019996,2]
[360243230,1746655840619,-450.0,0.00019996,2]
[360243231,1746655840629,-465.68,0.00019996,2]
[360243232,1746655840638,-450.0,0.00019996,2]
[360243233,1746655840649,-1747.7,0.00019996,2]
[360243234,1746655840661,-1364.77,0.00019996,2]
[360243236,1746655840671,-1387.87,0.00019996,2]
[360243239,1746655840683,-1458.27,0.00019996,2]
[360243241,1746655840694,-1225.16,0.00019996,2]
[360243243,1746655840704,-450.0,0.00019996,2]
[360243244,1746655840714,-1499.04,0.00019996,2]
[360243245,1746655840726,-1630.84,0.00019996,2]
[360243246,1746655840737,-3005.25,0.00019996,2]
[360243247,1746655840748,-886.22,0.00019997,2]
[360243248,1746655840759,-578.30680337,0.00019997,2]
[360243249,1746655840769,-450.0,0.00019997,2]
[360243250,1746655840779,-450.0,0.00019997,2]
[360243251,1746655840788,-450.0,0.00019997,2]
[360243252,1746655840798,-450.0,0.00019997,2]
[360243253,1746655840808,-450.0,0.00019997,2]
[360243254,1746655840818,-450.0,0.00019997,2]
[360243255,1746655840828,-641.81,0.00019997,2]
[360243256,1746655840838,-880.26,0.00019997,2]
[360243257,1746655840848,-450.0,0.00019997,2]
[360243258,1746655840857,-500.0,0.00019997,2]
[360243259,1746655840867,-588.03,0.00019997,2]
[360243260,1746655840877,-1747.7,0.00019997,2]
[360243261,1746655840887,-740.81,0.00019997,2]
[360243262,1746655840897,-1181.7,0.00019997,2]
[360243263,1746655840907,-1197.82,0.00019997,2]
[360243264,1746655840916,-450.0,0.00019997,2]
[360243265,1746655840926,-468.89,0.00019997,2]
[360243266,1746655840938,-964.89,0.00019997,2]
[360243267,1746655840947,-450.0,0.00019997,2]
[360243268,1746655840960,-1203.59,0.00019997,2]
[360243269,1746655840970,-450.0,0.00019997,2]
[360243270,1746655840980,-450.0,0.00019997,2]
[360243271,1746655840990,-1364.77,0.00019997,2]
[360243272,1746655841000,-2485.01,0.00019997,2]
[360243273,1746655841012,-470.41,0.00019997,2]
[360243274,1746655841023,-450.0,0.00019997,2]
[360243275,1746655841038,-455.28,0.00019997,2]
[360243276,1746655841049,-1387.87,0.00019997,2]
[360243277,1746655841060,-523.83,0.00019997,2]
[360243278,1746655841071,-1458.27,0.00019997,2]
[360243279,1746655841084,-2413.44,0.00019997,2]
[360243280,1746655841094,-450.0,0.00019997,2]
[360243281,1746655841104,-454.47,0.00019997,2]
[360243282,1746655841115,-510.26,0.00019997,2]
[360243283,1746655841126,-1225.16,0.00019997,2]
[360243284,1746655841136,-450.0,0.00019997,2]
[360243285,1746655841146,-450.0,0.00019997,2]
[360243286,1746655841156,-450.0,0.00019997,2]
[360243287,1746655841166,-2330.49,0.00019997,2]
[360243288,1746655841177,-186.65,0.00019997,2]
[360243289,1746655841189,-1499.04,0.00019997,2]
[360243290,1746655841200,-2975.48,0.00019997,2]
[360243291,1746655841211,-1761.95,0.00019997,2]
[360243292,1746655841223,-898.64,0.00019997,2]
[360243293,1746655841234,-450.0,0.00019997,2]
[360243294,1746655841245,-450.0,0.00019997,2]
[360243295,1746655841255,-2335.49,0.00019997,2]
[360243296,1746655841265,-1630.84,0.00019997,2]
[360243297,1746655841275,-450.0,0.00019997,2]
[360243298,1746655841285,-1235.09,0.00019997,2]
[360243299,1746655841295,-2234.18,0.00019997,2]
[360243300,1746655841304,-3005.25,0.00019997,2]
[360243301,1746655841314,-450.0,0.00019997,2]
[360243302,1746655841324,-450.0,0.00019997,2]
[360243303,1746655841335,-450.0,0.00019997,2]
[360243304,1746655841345,-495.47,0.00019997,2]
[360243305,1746655841355,-1784.45,0.00019997,2]
[360243306,1746655841365,-450.0,0.00019997,2]
[360243307,1746655841375,-207.24974634,0.00019998,2]
[360243308,1746655841385,-500.0,0.00019998,2]
[360243309,1746655841395,-198.17547618,0.00019998,2]
[360243310,1746655841405,-598.17033609,0.00019998,2]
[360243311,1746655841416,-500.0,0.00019998,2]
[360243312,1746655841428,-500.0,0.00019998,2]
[360243313,1746655841438,-500.0,0.00019998,2]
[360243314,1746655841448,-500.0,0.00019998,2]
[360243315,1746655841458,-150.0,0.00019998,2]
[360243316,1746655841468,-150.0,0.00019998,2]
[360243317,1746655841483,-150.0,0.00019998,2]
[360243318,1746655841493,-150.0,0.00019998,2]
[360243319,1746655841503,-886.22,0.00019998,2]
[360243320,1746655841514,-886.22,0.00019998,2]
[360243321,1746655841524,-886.22,0.00019998,2]
[360243322,1746655841538,-886.22,0.00019998,2]
[360243323,1746655841548,-886.22,0.00019998,2]
[360243324,1746655841559,-150.0,0.00019998,2]
[360243325,1746655841571,-412.58678637,0.00019998,2]
[360243326,1746655841581,-150.0,0.00019998,2]
[360243327,1746655841591,-450.0,0.00019998,2]
[360243328,1746655841602,-348.81,0.00019998,2]
[360243329,1746655841612,-910.5,0.00019998,2]
[360243330,1746655841622,-910.5,0.00019998,2]
[360243331,1746655841632,-910.5,0.00019998,2]
[360243332,1746655841642,-910.5,0.00019998,2]
[360243333,1746655841652,-641.81,0.00019998,2]
[360243334,1746655841664,-641.81,0.00019998,2]
[360243335,1746655841674,-641.81,0.00019998,2]
[360243336,1746655841685,-641.81,0.00019998,2]
[360243337,1746655841695,-641.81,0.00019998,2]
[360243338,1746655841706,-880.26,0.00019998,2]
[360243339,1746655841723,-880.26,0.00019998,2]
[360243340,1746655841733,-880.26,0.00019998,2]
[360243341,1746655841743,-880.26,0.00019998,2]
[360243342,1746655841754,-880.26,0.00019998,2]
[360243343,1746655841764,-2045.48,0.00019998,2]
[360243344,1746655841774,-2045.48,0.00019998,2]
[360243345,1746655841785,-2045.48,0.00019998,2]
[360243346,1746655841794,-2045.48,0.00019998,2]
[360243347,1746655841805,-667.65,0.00019998,2]
[360243348,1746655841816,-667.65,0.00019998,2]
[360243349,1746655841827,-667.65,0.00019998,2]
[360243350,1746655841837,-667.65,0.00019998,2]
[360243351,1746655841847,-450.0,0.00019998,2]
[360243352,1746655841857,-450.0,0.00019998,2]
[360243353,1746655841867,-450.0,0.00019998,2]
[360243354,1746655841877,-450.0,0.00019998,2]
[360243355,1746655841888,-450.0,0.00019998,2]
[360243356,1746655841898,-450.0,0.00019998,2]
[360243357,1746655841908,-450.0,0.00019998,2]
[360243358,1746655841917,-450.0,0.00019998,2]
[360243359,1746655841928,-4672.25,0.00019998,2]
[360243360,1746655841939,-4672.25,0.00019998,2]
[360243361,1746655841949,-4672.25,0.00019998,2]
[360243362,1746655841959,-4672.25,0.00019998,2]
[360243363,1746655841969,-192.07300118,0.00019998,2]
[360243364,1746655841979,-450.0,0.00019998,2]
[360243365,1746655841988,-450.0,0.00019998,2]
[360243366,1746655841998,-450.0,0.00019998,2]
[360243367,1746655842009,-150.0,0.00019998,2]
[360243368,1746655842019,-150.0,0.00019998,2]
[360243369,1746655842029,-450.0,0.00019998,2]
[360243370,1746655842039,-450.0,0.00019998,2]
[360243371,1746655842049,-450.0,0.00019998,2]
[360243372,1746655842059,-450.0,0.00019998,2]
[360243373,1746655842069,-588.03,0.00019998,2]
[360243374,1746655842079,-588.03,0.00019998,2]
[360243375,1746655842089,-588.03,0.00019998,2]
[360243376,1746655842102,-588.03,0.00019998,2]
[360243377,1746655842112,-588.03,0.00019998,2]
[360243378,1746655842122,-1747.7,0.00019998,2]
[360243379,1746655842132,-1747.7,0.00019998,2]
[360243380,1746655842142,-300.0,0.00019998,2]
[360243381,1746655842152,-1747.7,0.00019998,2]
[360243382,1746655842161,-1747.7,0.00019998,2]
[360243383,1746655842171,-740.81,0.00019998,2]
[360243384,1746655842180,-740.81,0.00019998,2]
[360243385,1746655842190,-740.81,0.00019998,2]
[360243386,1746655842199,-740.81,0.00019998,2]
[360243387,1746655842209,-740.81,0.00019998,2]
[360243388,1746655842219,-1181.7,0.00019998,2]
[360243389,1746655842229,-1181.7,0.00019998,2]
[360243390,1746655842239,-1181.7,0.00019998,2]
[360243391,1746655842250,-1181.7,0.00019998,2]
[360243392,1746655842260,-1181.7,0.00019998,2]
[360243393,1746655842271,-1197.82,0.00019998,2]
[360243394,1746655842281,-1197.82,0.00019998,2]
[360243395,1746655842291,-1197.82,0.00019998,2]
[360243396,1746655842301,-1197.82,0.00019998,2]
[360243397,1746655842312,-1197.82,0.00019998,2]
[360243398,1746655842322,-467.45,0.00019998,2]
[360243399,1746655842332,-964.89,0.00019998,2]
[360243400,1746655842342,-964.89,0.00019998,2]
[360243401,1746655842352,-964.89,0.00019998,2]
[360243402,1746655842362,-964.89,0.00019998,2]
[360243403,1746655842372,-964.89,0.00019998,2]
[360243404,1746655842383,-450.0,0.00019998,2]
[360243405,1746655842393,-450.0,0.00019998,2]
[360243406,1746655842404,-450.0,0.00019998,2]
[360243407,1746655842413,-450.0,0.00019998,2]
[360243408,1746655842424,-450.0,0.00019998,2]
[360243409,1746655842434,-1203.59,0.00019998,2]
[360243410,1746655842444,-1203.59,0.00019998,2]
[360243411,1746655842454,-1203.59,0.00019998,2]
[360243412,1746655842465,-1203.59,0.00019998,2]
[360243413,1746655842474,-1203.59,0.00019998,2]
[360243414,1746655842484,-450.0,0.00019998,2]
[360243415,1746655842495,-450.0,0.00019998,2]
[360243416,1746655842505,-550.85,0.00019998,2]
[360243417,1746655842516,-463.45,0.00019998,2]
[360243418,1746655842526,-1364.77,0.00019998,2]
[360243419,1746655842541,-1364.77,0.00019998,2]
[360243420,1746655842551,-1364.77,0.00019998,2]
[360243421,1746655842560,-1364.77,0.00019998,2]
[360243422,1746655842570,-2485.01,0.00019998,2]
[360243423,1746655842580,-2485.01,0.00019998,2]
[360243424,1746655842590,-2485.01,0.00019998,2]
[360243425,1746655842600,-2485.01,0.00019998,2]
[360243426,1746655842610,-2485.01,0.00019998,2]
[360243427,1746655842619,-455.28,0.00019998,2]
[360243428,1746655842630,-455.28,0.00019998,2]
[360243429,1746655842640,-455.28,0.00019998,2]
[360243430,1746655842650,-455.28,0.00019998,2]
[360243431,1746655842660,-455.28,0.00019998,2]
[360243432,1746655842669,-1387.87,0.00019998,2]
[360243433,1746655842679,-1387.87,0.00019998,2]
[360243434,1746655842690,-1387.87,0.00019998,2]
[360243435,1746655842700,-1387.87,0.00019998,2]
[360243436,1746655842711,-523.83,0.00019998,2]
[360243437,1746655842722,-523.83,0.00019998,2]
[360243438,1746655842732,-523.83,0.00019998,2]
[360243439,1746655842743,-523.83,0.00019998,2]
[360243440,1746655842753,-1458.27,0.00019998,2]
[360243441,1746655842763,-1458.27,0.00019998,2]
[360243442,1746655842773,-1458.27,0.00019998,2]
[360243443,1746655842783,-2413.44,0.00019998,2]
[360243444,1746655842793,-1458.27,0.00019998,2]
[360243445,1746655842803,-2413.44,0.00019998,2]
[360243446,1746655842813,-2413.44,0.00019998,2]
[360243447,1746655842823,-2413.44,0.00019998,2]
[360243448,1746655842833,-2413.44,0.00019998,2]
[360243449,1746655842846,-454.47,0.00019998,2]
[360243450,1746655842856,-454.47,0.00019998,2]
[360243451,1746655842866,-454.47,0.00019998,2]
[360243452,1746655842877,-454.47,0.00019998,2]
[360243454,1746655842887,-454.47,0.00019998,2]
[360243456,1746655842897,-510.26,0.00019998,2]
[360243458,1746655842907,-510.26,0.00019998,2]
[360243459,1746655842917,-1225.16,0.00019998,2]
[360243460,1746655842928,-510.26,0.00019998,2]
[360243461,1746655842938,-1225.16,0.00019998,2]
[360243462,1746655842948,-510.26,0.00019998,2]
[360243463,1746655842957,-1225.16,0.00019998,2]
[360243464,1746655842967,-510.26,0.00019998,2]
[360243465,1746655842977,-1225.16,0.00019998,2]
[360243466,1746655842988,-450.0,0.00019998,2]
[360243468,1746655842999,-450.0,0.00019998,2]
[360243469,1746655843009,-450.0,0.00019998,2]
[360243471,1746655843019,-450.0,0.00019998,2]
[360243472,1746655843029,-450.0,0.00019998,2]
[360243473,1746655843040,-450.0,0.00019998,2]
[360243474,1746655843049,-450.0,0.00019998,2]
[360243475,1746655843059,-450.0,0.00019998,2]
[360243476,1746655843069,-2330.49,0.00019998,2]
[360243477,1746655843079,-2330.49,0.00019998,2]
[360243478,1746655843089,-2330.49,0.00019998,2]
[360243479,1746655843099,-2330.49,0.00019998,2]
[360243480,1746655843109,-2330.49,0.00019998,2]
[360243481,1746655843120,-276.25,0.00019998,2]
[360243482,1746655843130,-1499.04,0.00019998,2]
[360243483,1746655843140,-1499.04,0.00019998,2]
[360243484,1746655843150,-1499.04,0.00019998,2]
[360243485,1746655843160,-2975.48,0.00019998,2]
[360243486,1746655843170,-1499.04,0.00019998,2]
[360243487,1746655843180,-2975.48,0.00019998,2]
[360243488,1746655843190,-2975.48,0.00019998,2]